Cogmind - Beta 17 @@@ ROGUE MODE // 2026.06.25 @ 10:29:57 Player: pinbox Result: Destroyed by Y-45 Defender with Beam Rifle Performance ------------- Evolutions (2) 1000 Regions Visited (6) 1200 Robots Destroyed (55) 275 Value Destroyed (1566) 1566 Prototype IDs (5) 100 Alien Tech Used (0) 0 Bonus (0) 0 TOTAL SCORE: 4141 Bonus ------- None Cogmind --------- Core Integrity 0/550 Matter 265/300 Energy 111/160 System Corruption 1% Temperature Cool (9) Movement Core (200) Ox3 Location -8/Storage Parts ------- > --- POWER (1) -------- Light Nuclear Core > --- PROPULSION (3) --- (None) > --- UTILITY (5) ------ Advanced Heat Sink Structural Scanner Experimental Sensor Array Improved Targeting Computer Improved Targeting Computer > --- WEAPON (2) ------- Particle Gun > --- INVENTORY (5) ---- Light Angular Momentum Engine Improved Heat Sink Peak State ------------ > --- POWER ------------ Light Angular Momentum Engine > --- PROPULSION ------- Aluminum Leg Carbon-fiber Leg Carbon-fiber Leg > --- UTILITY ---------- Advanced Heat Sink Large Battery Improved Targeting Computer Improved Targeting Computer Drone Bay > --- WEAPON ----------- Heavy Laser Improved Light Cannon > --- INVENTORY -------- Light Angular Momentum Engine Improved Heat Sink Experimental Sensor Array Beamcaster [Rating: 35] Favorites ----------- Power Heavy Ion Engine Engine Heavy Ion Engine Power Core Light Nuclear Core Propulsion Aluminum Leg Leg Aluminum Leg Flight Unit Flight Unit Utility Improved Targeting Computer Device Improved Heat Sink Storage Small Storage Unit Processor Improved Targeting Computer Protection Light Armor Plating Weapon Advanced Beam Rifle Energy Gun Advanced Beam Rifle Ballistic Gun Light Assault Rifle Ballistic Cannon Improved Light Cannon Build | -11 -10 -10 -9 -9 -8 -8 ------- Run | Yrd Mat Min Mat Min Mat Sto Slots Evolved 4 | . . . 2 . 2 . Power . | . . . . . . . Propulsion 1 | . . . . . 1 . Utility 3 | . . . 2 . 1 . Weapon . | . . . . . . . Parts Attached 57 | 6 5 4 14 5 1 22 Power 12 | 1 . 1 5 . . 5 Engine 11 | 1 . 1 5 . . 4 Core 1 | . . . . . . 1 Reactor . | . . . . . . . Propulsion 15 | 2 3 . 4 1 . 5 Treads . | . . . . . . . Leg 14 | 2 3 . 4 1 . 4 Wheel . | . . . . . . . Hover . | . . . . . . . Flight 1 | . . . . . . 1 Utility 17 | 1 1 1 3 4 1 6 Device 11 | . 1 1 2 2 . 5 Storage 2 | 1 . . . . . 1 Processor 3 | . . . . 2 1 . Hackware . | . . . . . . . Protection 1 | . . . 1 . . . Artifact . | . . . . . . . Weapon 13 | 2 1 2 2 . . 6 Energy Gun 7 | . . . 2 . . 5 Energy Cannon . | . . . . . . . Ballistic Gun 5 | 2 1 2 . . . . Ballistic Cannon 1 | . . . . . . 1 Launcher . | . . . . . . . Special Weapon . | . . . . . . . Impact Weapon . | . . . . . . . Slashing Weapon . | . . . . . . . Piercing Weapon . | . . . . . . . Special Melee Weapon . | . . . . . . . Unidentified Prototypes 4 | . . . 3 1 . . Parts Lost 22 | . 2 . 1 . . 19 Power 4 | . 1 . . . . 3 Propulsion 10 | . . . 1 . . 9 Utility 3 | . 1 . . . . 2 Weapon 5 | . . . . . . 5 Highest Loss Streak 7 | . 2 . 1 . . 7 To Critical Strikes . | . . . . . . . Average Backups 5 | 1 3 4 6 5 5 4 Power . | . 1 . . . . . Propulsion . | . . 1 . 1 1 . Utility . | . . . . . 1 1 Weapon 2 | . 1 2 4 3 3 1 Tool/Special . | . . . . . . . Unused Backups 9 | . . . 6 2 . 1 Power 1 | . . . . . . 1 Propulsion . | . . . . . . . Utility . | . . . . . . . Weapon 6 | . . . 4 2 . . Tool/Special 2 | . . . 2 . . . Average Slot Usage (%) 90 | . 96 98 86 98 98 85 Engine 10 | . 13 12 10 11 9 7 Leg 22 | . 28 28 21 22 25 20 Device 15 | . 11 14 17 15 18 13 Storage 9 | . 14 14 10 11 9 6 Processor 9 | . . . . 16 18 21 Protection 1 | . . . 4 . . . Energy Gun 14 | . . . 21 22 18 11 Ballistic Gun 5 | . 28 28 . . . . Ballistic Cannon 1 | . . . . . . 4 Peak Build Rating 35 | 6 8 9 20 30 34 35 Average Rating 19 | 5 6 8 17 23 33 27 On Entrance 13 | . 6 5 9 19 25 30 Avg Prop Armor Cover (%) . | . . . . . . . Naked Turns . | . . . . . . . Heaviest Build 27 | 10 11 13 21 19 19 27 Greatest Support 40 | 20 20 20 20 25 35 40 Greatest Overweight (x) 4 | 1 . . 1 . . 4 Average Overweight (x) . | . . . . . . . Largest Inventory Capacity 8 | 8 8 8 8 8 8 8 Average Capacity 7 | 7 8 8 7 8 8 5 Most Carried 8 | 2 8 5 8 8 7 7 Average Carried 5 | 1 3 4 6 5 5 4 Final Capacity 8 | 8 8 8 8 8 8 5 Final Carried 7 | 2 6 4 5 7 6 2 Class Distribution -------------------- 59% | Mutant 40% | Scavenger-Mutant Dominant Class ---------------- Mutant | -10/Materials Scavenger-Mutant | -10/Mines Scavenger-Mutant | -9/Materials Mutant | -9/Mines Mutant | -8/Materials Scavenger-Mutant | -8/Storage Resources | -11 -10 -10 -9 -9 -8 -8 ----------- Run | Yrd Mat Min Mat Min Mat Sto Matter Collected 1112 | 212 188 54 173 48 58 379 Remotely . | . . . . . . . Salvage Created 1936 | . 315 41 534 54 58 934 Parts 113 | . 27 6 35 2 . 43 Haulers Intercepted . | . . . . . . . Recyclers Shooed 3 | . . . 1 . . 2 Parts Field Recycled . | . . . . . . . Retrieved Matter . | . . . . . . . Parts Self-Destructed . | . . . . . . . Prevented . | . . . . . . . Parts Restored . | . . . . . . . Kills | -11 -10 -10 -9 -9 -8 -8 ------- Run | Yrd Mat Min Mat Min Mat Sto Combat Hostiles Destroyed 45 | . 8 3 13 1 1 19 Melee 1 | . . . . . . 1 Guns 41 | . 8 3 13 1 1 15 Cannons 3 | . . . . . . 3 Classes Destroyed 10 | . 4 . 3 . . 3 Worker 4 | . 1 . 1 . . 2 Builder 1 | . . . . . . 1 Recycler 1 | . . . 1 . . . Operator 1 | . . . 1 . . . Watcher 3 | . 1 . 1 . . 1 Swarmer 13 | . 2 3 6 . . 2 Grunt 25 | . 6 . 6 . 1 12 Duelist 1 | . . . . . . 1 Protector 1 | . . . . . . 1 Sentry 5 | . . . 1 1 . 3 Best Kill Streak 8 | . 3 2 5 1 1 8 Combat Bots Only 8 | . 2 2 4 1 1 8 Max Kills in Single Turn 2 | . 1 2 1 1 1 1 Gunslinging 1 | . . 1 . . . . Exploded . | . . . . . . . Melee 1 | . . . . . . 1 Uniques/NPCs Destroyed . | . . . . . . . Combat | -11 -10 -10 -9 -9 -8 -8 -------- Run | Yrd Mat Min Mat Min Mat Sto Hostile Shots Fired 371 | . 64 16 84 5 14 188 Missed 105 | . 24 3 21 2 4 51 Hits 266 | . 40 13 63 3 10 137 Melee 2 | . . . . . . 2 Projectile 264 | . 40 13 63 3 10 135 Critical Strikes 8 | . . . . . 1 7 Damage Taken 3365 | . 445 109 568 42 147 2054 Core 866 | . 105 . 180 29 31 521 Absorbed by Shields . | . . . . . . . Regen/Repaired (Parts) 77 | . . . 77 . . . Core Remaining (%) 68 | 100 . 58 . 47 . . Volleys Fired 168 | 1 39 7 36 2 6 77 Largest 2 | 2 2 2 2 2 2 2 Hottest 144 | 40 40 40 122 122 122 144 Shots Fired 311 | 2 78 14 71 5 12 129 Gun 282 | 2 78 14 71 5 12 100 Cannon 29 | . . . . . . 29 Launcher . | . . . . . . . Special . | . . . . . . . Kinetic 123 | 2 78 14 . . . 29 Thermal 188 | . . . 71 5 12 100 Explosive . | . . . . . . . Electromagnetic . | . . . . . . . Robot Hit Streak 23 | . 5 3 5 4 16 23 Robot Miss Streak 7 | . 3 3 7 . . 4 Penetration Max . | . . . . . . . Secondary Targets 5 | . 1 1 3 . . . Max Gunslinging Chain 1 | . 1 1 1 . . . Shots Hit Robots 174 | . 44 6 36 3 12 73 Core Hits 90 | . 23 4 17 1 2 43 Critical Kills . | . . . . . . . Critical Parts Destroyed 1 | . 1 . . . . . Critical Strikes 12 | . 1 . 5 2 . 4 Burn 10 | . . . 5 2 . 3 Destroy 1 | . 1 . . . . . Blast 1 | . . . . . . 1 Melee Attacks . | . . . . . . . Impact . | . . . . . . . Slashing . | . . . . . . . Piercing . | . . . . . . . Sneak Attacks . | . . . . . . . Combat Hostiles . | . . . . . . . Follow-up Attacks . | . . . . . . . Damage Inflicted 3046 | . 401 47 800 60 240 1498 Guns 2760 | . 401 47 800 60 240 1212 Cannons 270 | . . . . . . 270 Explosions . | . . . . . . . Melee . | . . . . . . . Ramming 16 | . . . . . . 16 Kinetic 718 | . 401 47 . . . 270 Thermal 2312 | . . . 800 60 240 1212 Explosive . | . . . . . . . Electromagnetic . | . . . . . . . Impact . | . . . . . . . Slashing . | . . . . . . . Piercing . | . . . . . . . Highest Corruption 2 | . . . 2 2 . 1 Average Corruption 1 | . . . 1 2 . 1 Corruption Purged . | . . . . . . . Corruption Blocked . | . . . . . . . Effects 4 | . . . 1 2 . 1 Matter Fused 2 | . . . . 1 . 1 Misfires 1 | . . . . 1 . . Weapon Failures 1 | . . . 1 . . . Overload Shots . | . . . . . . . Overflow Damage 3 | . . . . . . 3 Projectiles 3 | . . . . . . 3 Explosions . | . . . . . . . Melee . | . . . . . . . Knockbacks 3 | . . . . . . 3 Impact . | . . . . . . . Kinetic 3 | . . . . . . 3 Secondary . | . . . . . . . Self-Inflicted Damage 6 | . . . . . . 6 Shots . | . . . . . . . Rammed 5 | . . . . . . 5 Targets Rammed 8 | . . . 1 . . 7 Kicked 3 | . . . 1 . . 2 Crushed . | . . . . . . . Highest Temperature 564 | . 6 . 48 3 48 564 Average Temperature 229 | . 5 . 14 3 24 320 Received Heat Transfer 1395 | . 225 . 117 18 108 927 Effects 39 | . . . . . . 39 Shutdowns 3 | . . . . . . 3 Energy Bleed 4 | . . . . . . 4 Interference 8 | . . . . . . 8 Matter Decay 2 | . . . . . . 2 Short Circuit 5 | . . . . . . 5 Damage (minor) 4 | . . . . . . 4 Damage (major) 13 | . . . . . . 13 Siege Activations . | . . . . . . . Martial Activations . | . . . . . . . Shielding Activations . | . . . . . . . Robots Disrupted . | . . . . . . . Combat Hostiles . | . . . . . . . Robots Corrupted . | . . . . . . . Combat Hostiles . | . . . . . . . Parts Fried . | . . . . . . . Impact Corruptions . | . . . . . . . Robots Melted . | . . . . . . . Combat Hostiles . | . . . . . . . Parts Melted 9 | . . . 5 . . 4 Heat Transferred 5002 | . . . 1850 259 444 2449 Parts Sabotaged . | . . . . . . . Parts Stolen . | . . . . . . . Parts Stripped . | . . . . . . . Power Chain Reactions . | . . . . . . . Alert | -11 -10 -10 -9 -9 -8 -8 ------- Run | Yrd Mat Min Mat Min Mat Sto Maximum Alert Level 1 | . . . . . . 1 Low Security (%) 97 | 100 100 100 100 100 100 91 Level 1 2 | . . . . . . 8 Level 2 . | . . . . . . . Level 3 . | . . . . . . . Level 4 . | . . . . . . . Level 5 . | . . . . . . . High Security . | . . . . . . . Max Security . | . . . . . . . Peak Influence 225 | . 102 77 170 42 20 225 Initial 42 | . . 27 26 42 . 3 Average 73 | . 47 43 77 17 1 124 Influence Increases 1303 | . 202 70 378 50 20 583 Destroy 0b10 Robot/C 880 | . 160 60 260 20 20 360 Destroy 0b10 Robot/NC 55 | . 10 . 20 . . 25 Destroy Leader 146 | . 32 10 42 . . 62 Successful Hack 40 | . . . 40 . . . Disable Machine 15 | . . . . . . 15 Destroy Structure 2 | . . . 1 . . 1 Lose Combat Pursuer 165 | . . . 15 30 . 120 Influence Decreases 1172 | . 130 75 336 159 10 462 Entered New Map 160 | . . 45 41 67 . 7 Time Decay 777 | . 110 30 270 92 10 265 Lost Part 210 | . 20 . 10 . . 180 Lost Ally 10 | . . . . . . 10 Purge Threat 15 | . . . 15 . . . Squads Dispatched 5 | . 2 . 1 . . 2 Investigation . | . . . . . . . Extermination . | . . . . . . . Reinforcement 3 | . 2 . 1 . . . Assault 2 | . . . . . . 2 Garrison . | . . . . . . . Intercept . | . . . . . . . Searches Triggered . | . . . . . . . Construction Impeded . | . . . . . . . Haulers Reinforced . | . . . . . . . Active Scanning Responses . | . . . . . . . Cargo Convoy Interrupts . | . . . . . . . Stealth | -11 -10 -10 -9 -9 -8 -8 --------- Run | Yrd Mat Min Mat Min Mat Sto Distress Signals 5 | . 1 . 1 . . 3 Communications Jammed . | . . . . . . . Distress Signals . | . . . . . . . Times Spotted 81 | . 14 3 19 4 3 38 Peak Tracking Total 15 | . 4 3 5 2 2 15 Tactical Retreats 6 | . . . 1 1 . 4 Traps | -11 -10 -10 -9 -9 -8 -8 ------- Run | Yrd Mat Min Mat Min Mat Sto Traps Triggered 3 | . . . 2 . . 1 Indirectly . | . . . . . . . Trap Hack Attempts . | . . . . . . . Triggered . | . . . . . . . Disarmed . | . . . . . . . Reprogrammed . | . . . . . . . Reused . | . . . . . . . Traps Extracted . | . . . . . . . Installed . | . . . . . . . Triggered . | . . . . . . . Machines | -11 -10 -10 -9 -9 -8 -8 ---------- Run | Yrd Mat Min Mat Min Mat Sto Machines Disabled 1 | . . . . . . 1 Max in Single Turn 1 | . . . . . . 1 Garrison Access 1 | . . . . . . 1 Machines Repaired . | . . . . . . . Machines Dismantled . | . . . . . . . Machines Sabotaged . | . . . . . . . Overloaded Fab Kills . | . . . . . . . Hacking | -11 -10 -10 -9 -9 -8 -8 --------- Run | Yrd Mat Min Mat Min Mat Sto Machines Accessed 15 | . 1 . 10 . . 4 Terminals 10 | . 1 . 6 . . 3 Fabricators . | . . . . . . . Repair Stations 1 | . . . 1 . . . Recycling Units 2 | . . . 1 . . 1 Scanalyzers 2 | . . . 2 . . . Garrison Access . | . . . . . . . Total Hacks 41 | . 2 . 31 . . 8 Successful 19 | . . . 16 . . 3 Failed 21 | . 2 . 14 . . 5 Catastrophic 4 | . 1 . 2 . . 1 Database Lockouts 1 | . . . 1 . . . Manual 24 | . . . 19 . . 5 Terminals 25 | . 2 . 18 . . 5 Fabricators . | . . . . . . . Repair Stations 4 | . . . 4 . . . Recycling Units 7 | . . . 4 . . 3 Scanalyzers 5 | . . . 5 . . . Garrison Access . | . . . . . . . Terminal Hacks 7 | . . . 5 . . 2 Prototype ID Bank 1 | . . . 1 . . . Open Door 1 | . . . . . . 1 Branch Access Points 1 | . . . 1 . . . Recycling Unit Index 1 | . . . 1 . . . Alert Level 2 | . . . 1 . . 1 Unreport Threat 1 | . . . 1 . . . Fabricator Hacks . | . . . . . . . Repair Station Hacks 4 | . . . 4 . . . Scan Component 2 | . . . 2 . . . Repair 2 | . . . 2 . . . Recycling Unit Hacks 3 | . . . 2 . . 1 Report Inventory 1 | . . . 1 . . . Retrieve Components 2 | . . . 1 . . 1 Scanalyzer 3 | . . . 3 . . . Insert Component 1 | . . . 1 . . . Analyze 1 | . . . 1 . . . Retrieve Study 1 | . . . 1 . . . Garrison Access Hacks . | . . . . . . . Unauthorized Hacks 2 | . . . 2 . . . Terminals 2 | . . . 2 . . . Botnet 2 | . . . 2 . . . Fabricators . | . . . . . . . Repair Stations . | . . . . . . . Recycling Units . | . . . . . . . Scanalyzers . | . . . . . . . Garrison Access . | . . . . . . . Data Cores Recovered . | . . . . . . . Used . | . . . . . . . Hacking Detections 14 | . 1 . 10 . . 3 Full Trace Events 1 | . . . 1 . . . Feedback Events . | . . . . . . . Feedback Blocked . | . . . . . . . Robot Schematics Acquired . | . . . . . . . Robots Built . | . . . . . . . Authchips . | . . . . . . . Time . | . . . . . . . Total Robot Build Rating . | . . . . . . . Part Schematics Acquired 1 | . . . 1 . . . Parts Built . | . . . . . . . Authchips . | . . . . . . . Time . | . . . . . . . Total Part Build Rating . | . . . . . . . Part Studies Acquired 1 | . . . 1 . . . Parts Repaired 2 | . . . 2 . . . Time 52 | . . . 52 . . . Parts Recycled . | . . . . . . . Recycled Matter . | . . . . . . . Retrieved Matter . | . . . . . . . Retrieved Components 16 | . . . 9 . . 7 Parts Scanalyzed 1 | . . . 1 . . . Part Schematics Acquired 1 | . . . 1 . . . Parts Damaged . | . . . . . . . Bothacking | -11 -10 -10 -9 -9 -8 -8 ------------ Run | Yrd Mat Min Mat Min Mat Sto Used RIF Installer . | . . . . . . . Robots Hacked . | . . . . . . . Non-combat . | . . . . . . . Combat . | . . . . . . . Robot Hacks Applied . | . . . . . . . Relay Couplers Released 3 | . . . . . . 3 Machine Destruction 3 | . . . . . . 3 Fabnet Peak Effective % . | . . . . . . . Robots Rewired . | . . . . . . . Allies Hacked . | . . . . . . . Hacks Repelled . | . . . . . . . Allies | -11 -10 -10 -9 -9 -8 -8 -------- Run | Yrd Mat Min Mat Min Mat Sto Total Allies . | . . . . . . . Largest Group . | . . . . . . . Highest-Rated Group . | . . . . . . . Highest-Rated Ally . | . . . . . . . Total Orders 1 | . . . . . . 1 EXPLORE 1 | . . . . . . 1 Ally Attacks . | . . . . . . . Total Damage . | . . . . . . . Kills . | . . . . . . . Allies Corrupted . | . . . . . . . Allies Melted . | . . . . . . . Intel | -11 -10 -10 -9 -9 -8 -8 ------- Run | Yrd Mat Min Mat Min Mat Sto Active Infowar (turns) 181 | . . . . 1 63 117 Sensors 100 | . . . . 1 63 36 Terrain 70 | . . . . . . 70 Structural 117 | . . . . . . 117 Robot Analysis Total . | . . . . . . . Derelict Logs Recovered . | . . . . . . . Drone Launches 2 | . . . . . . 2 Drone Recoveries . | . . . . . . . Exploration | -11 -10 -10 -9 -9 -8 -8 ------------- Run | Yrd Mat Min Mat Min Mat Sto Turns Passed 2261 | 79 278 78 787 296 70 673 Spaces Moved 1378 | 58 131 42 489 241 44 373 Core 62 | 11 . . . . . 51 Treads . | . . . . . . . Legs 1280 | 47 131 42 489 241 44 286 Wheels . | . . . . . . . Hover . | . . . . . . . Flight 36 | . . . . . . 36 Fastest Speed 40 | 50 120 120 105 105 110 40 Average Speed 111 | 113 120 120 115 109 110 102 Slowest Speed 250 | 120 120 120 190 112 110 250 Overloaded Moves . | . . . . . . . Propulsion Burnouts . | . . . . . . . Robots Hopped . | . . . . . . . Potential Cave-ins 5 | . . . . . . 5 Cave-ins Triggered . | . . . . . . . Exploration Rate (%) 25 | 3 29 13 37 49 6 44 Regions Visited 6 Branch Regions 3 Pre-discovered Areas . | . . . . . . . Known Exits Taken 1 | . . . 1 . . . Unknown Exits Taken 5 | 1 1 1 . 1 1 . Scrap Searched 2 | . . 1 . 1 . . Spaces Dug 6 | . . . . . . 6 Terrain Destroyed 6 | . . . . . . 6 Melee . | . . . . . . . Projectile 6 | . . . . . . 6 AOE . | . . . . . . . Terrain Rammed . | . . . . . . . Walls Destroyed . | . . . . . . . Machines Disabled . | . . . . . . . Actions | -11 -10 -10 -9 -9 -8 -8 --------- Run | Yrd Mat Min Mat Min Mat Sto Total 1808 | 66 189 58 643 270 54 528 Wait 119 | . 6 4 65 15 . 29 Move 1372 | 57 130 41 488 240 43 373 Hop . | . . . . . . . Pick Up 30 | 2 4 . 15 2 1 6 Fast Attach 31 | 6 1 . 7 2 . 15 Attach 24 | . 1 2 7 2 3 9 Detach 4 | . 1 . . 2 1 . Swap 15 | . 4 2 5 2 . 2 Drop 37 | . 3 2 19 3 . 10 Fire 168 | 1 39 7 36 2 6 77 Melee . | . . . . . . . Ram 5 | . . . . . . 5 Kick 3 | . . . 1 . . 2 Crush . | . . . . . . . Escape Stasis . | . . . . . . . Rewire . | . . . . . . . Trap . | . . . . . . . Miscellaneous . | . . . . . . . Route ------- -11/Scrapyard -10/Materials -10/Mines -9/Materials (discovered 2 exits: *Min x2) -9/Mines -8/Materials -8/Storage History --------- Turn | Location | Event 11 | -11/Scrapyard | Discovered new exit (range 15) 80 | -11/Scrapyard | Entered Materials 249 | -10/Materials | Discovered new exit (range 10) 306 | -10/Materials | Build established: Mutant 358 | -10/Materials | Entered Mines 381 | -10/Mines | Discovered new exit (range 13) 436 | -10/Mines | Entered Materials 436 | -9/Materials | Evolved 2 slots: Utility x2 582 | -9/Materials | Identified exit to Mines 858 | -9/Materials | Build established: Scavenger-Mutant 922 | -9/Materials | Central database locked down 1145 | -9/Materials | Repaired Sml. Storage Unit 1172 | -9/Materials | Repaired Aluminum Leg+ 1223 | -9/Materials | Entered Mines 1295 | -9/Mines | Met a Derelict bent on vengeance 1316 | -9/Mines | Joined a pair of Derelicts in attacking an 0b10 outpost 1326 | -9/Mines | Core integrity fell below 50% 1372 | -9/Mines | Build established: Mutant 1423 | -9/Mines | Found a damaged Exp. Sensor Array with a note attached 1425 | -9/Mines | Found Prototype Device 1427 | -9/Mines | Identified Exp. Sensor Array 1459 | -9/Mines | Discovered new exit (range 5) 1519 | -9/Mines | Entered Materials 1519 | -8/Materials | Evolved 2 slots: Propulsion x1, Utility x1 1584 | -8/Materials | Discovered new exit (range 5) 1589 | -8/Materials | Entered Storage 1793 | -8/Storage | Destroyed 8 combat bots 1804 | -8/Storage | Core integrity fell below 50% 1819 | -8/Storage | Lost 7 parts (1p3n2u1w) 2181 | -8/Storage | Build established: Scavenger-Mutant 2191 | -8/Storage | Core integrity fell below 20% 2231 | -8/Storage | Lost 7 parts (1p3n3w) 2262 | -8/Storage | Destroyed by Y-45 Defender with Beam Rifle Last Messages --------------- [Achievement: Fist Fight] Acquired Flight Unit. Dropped Broken Terrain Scanner. Connecting with Door Terminal... Flight Unit destroyed. Connecting with Recycling Unit... >>Retrieve(Components) Retrieving 7 components... Imp. Terrain Scanner Lgt. Nuclear Core Particle Gun Wheel Reflective Plating Imp. Weapon Shielding Sml. Matter Pod Acquired Lgt. Nuclear Core. Acquired Particle Gun. Y-45 Defender destroyed. R-06 Scavenger inserts Lgt. Ion Engine into recycling unit. Map ----- +----------------------------------------------------+ | # ??????????#??????????????????? | | # ??????????????# ????????????? | | # ????????????????????????????? | | # ?????????????##""""#????????? | | + ?????????????### ##????????? | | # ###############T ########### | | # ################ ########### | | # + # # !%%%% # | | # # + + """ """ # | | # # # # """ """ # | | # # # # """ """ # | | # # # # """ """ # | | # # # # """ """ # | | # # # # # | | + ####/####### ##### ##### | | # #### ####### ########### | | # ## ##### #######??? | | # ## ##???#???? | | # ## T ##???????? | | ###%* ## #####YY ######???? | | ###[ ### #######/#######????? | | ?##[ ### ##### Y ####??? | | ###%* ### ##?## """Y ####??? | | ### ### ##### """!!""##??? | | + ### ##### """!rY"##??? | | #### ### ###"" r @""##??? | | #### ### ###"T """ ####??? | | ???## % ###"" """=!####??? | | ???## ##### """%!##????? | | ???## + [ ##????? | | ???## %=###+########## #####????? | | ???## ## ###############????? | | ???##=%!##??????????####????????? | | #??##* =##??????????????????????? | | ???## ! ##??????????????????????? | | ???## ##??????????????????????? | | ##### ##????????#######???????? | | "" # ########## #???????? | | "" # #???????? | | "" # " #???????? | | # #???????? | | # ########## #####???? | | ################# ### #???? | | +########## # #????? | | + """ # ####????? | | ########## """ # #T######?? | | ########## """ + % # !!!#?? | | =# ## # ! #?? | | # """% ### """ # #!!!!#?? | | # """ #?# """ # ########?? | +----------------------------------------------------+ Best States ------------- Heat Dissipation 64 Energy Generation 18 Energy Capacity 350 Matter Stores 300 Matter Capacity 300 Sight Range 16 Robot Scan Range 20 Terrain Scan Range 14 Terrain Scan Density 10 Armor Coverage 150 Evasion (%) 62 Targeting Accuracy 12 Core Analysis 6 Item Schematics ----------------- Particle Gun | -9/Materials | Scanalyzed Robot Schematics ------------------ None Fabricated ------------ Nothing Repaired ---------- Sml. Storage Unit | 68% | -9/Materials Aluminum Leg | 66% | -9/Materials Studied --------- Aluminum Leg | -9/Materials | Hacked Alien Tech Used ----------------- None Achievements -------------- Fist Fight Challenges ------------ None Game ------ Seed BeamStasisAutogun Manual? 0 Play Time 00:43:58 Cumulative 9.9 hours Start 2026.06.24 @ 19:26:32 End 2026.06.25 @ 10:29:57 Sessions 3 Manual Loads 0 Difficulty Rogue Special Mode None Game No. 8 Rogue 8 Adventurer 0 Explorer 0 Win Type - Total 0 Types 0/0/0/0/0/0/0/0/0/0 Lore% 3 Gallery% 15 Achievement% 12 Wizard Run 0 Options --------- Layout 1 ASCII 0 Keyboard 0 Movement Mouse Keybinds 1 Fullscreen 2 Font 24/Smallcaps Map View 50x40 Zoom Use 0% Tactical HUD 0 Map Filters NONE Filters NONE Steam 1 RUN: 06eabdab-4e1a-43f4-9bdb-70e8c1b5440e